Cogmind - Beta 12 X4 @@@ ROGUE MODE // 2022.12.29 @ 22:36:10 Player: Lunatic Blue Result: Destroyed by S-10 Pest with Light Assault Rifle Performance ------------- Evolutions (0) 0 Regions Visited (4) 800 Robots Destroyed (14) 70 Value Destroyed (198) 198 Prototype IDs (23) 460 Alien Tech Used (0) 0 Bonus (300) 300 TOTAL SCORE: 1828 Bonus ------- Aligned with FarCom 300 Cogmind --------- Core Integrity 0/250 Matter 186/300 Energy 132/250 System Corruption 4% Temperature Cool (2) Movement Treading (240) Ox1 Location -9/Mines Parts ------- > --- POWER (1) -------- Ion Engine > --- PROPULSION (2) --- Improved Treads Improved Treads > --- UTILITY (2) ------ High-capacity Storage Unit > --- WEAPON (2) ------- Latent Energy Streamer Grenade Launcher > --- INVENTORY (20) --- Improved Treads Improved Treads Large Storage Unit Lightpack 2.0 Signal Interpreter Particle Cannon Particle Cannon Particle Cannon Particle Cannon Grenade Launcher Grenade Launcher Plasma Cutter Peak State ------------ > --- POWER ------------ Ion Engine > --- PROPULSION ------- Improved Treads Improved Treads > --- UTILITY ---------- High-capacity Storage Unit > --- WEAPON ----------- Latent Energy Streamer Grenade Launcher > --- INVENTORY -------- Improved Treads Improved Treads Large Storage Unit Lightpack 2.0 Signal Interpreter Particle Cannon Particle Cannon Particle Cannon Particle Cannon Grenade Launcher Grenade Launcher Plasma Cutter [Rating: 21] Favorites ----------- Power Ion Engine Engine Ion Engine Propulsion Light Treads Treads Light Treads Wheel Wheel Utility Structural Scanner Device Structural Scanner Storage Large Storage Unit Weapon Small Laser Energy Gun Small Laser Energy Cannon Latent Energy Streamer Launcher Grenade Launcher Build | -11 -10 -10 -10 -9 ------- Run | Scr Mat Min Exi Min Slots Evolved . | . . . . . Power . | . . . . . Propulsion . | . . . . . Utility . | . . . . . Weapon . | . . . . . Parts Attached 16 | 6 2 1 1 6 Power 2 | 1 . . . 1 Engine 2 | 1 . . . 1 Core . | . . . . . Reactor . | . . . . . Propulsion 5 | 2 . 1 . 2 Treads 4 | 1 . 1 . 2 Leg . | . . . . . Wheel 1 | 1 . . . . Hover . | . . . . . Flight . | . . . . . Utility 4 | 1 2 . 1 . Device 1 | . 1 . . . Storage 3 | 1 1 . 1 . Processor . | . . . . . Hackware . | . . . . . Protection . | . . . . . Artifact . | . . . . . Weapon 5 | 2 . . . 3 Energy Gun 2 | 2 . . . . Energy Cannon 1 | . . . . 1 Ballistic Gun . | . . . . . Ballistic Cannon . | . . . . . Launcher 2 | . . . . 2 Special Weapon . | . . . . . Impact Weapon . | . . . . . Slashing Weapon . | . . . . . Piercing Weapon . | . . . . . Special Melee Weapon . | . . . . . Unidentified Prototypes . | . . . . . Parts Lost 6 | . . 1 . 5 Power 1 | . . . . 1 Propulsion 3 | . . 1 . 2 Utility 1 | . . . . 1 Weapon 1 | . . . . 1 Highest Loss Streak 5 | . . 1 . 5 To Critical Strikes . | . . . . . Average Slot Usage (%) 97 | . 90 99 100 95 Engine 13 | . 14 14 14 13 Treads 23 | . 14 16 28 28 Wheel 4 | . 14 11 . . Device 12 | . 4 14 14 11 Storage 14 | . 14 14 14 14 Energy Gun 26 | . 28 28 28 22 Naked Turns . | . . . . . Heaviest Build 58 | 13 29 29 49 58 Greatest Support 46 | 10 10 40 40 46 Greatest Overweight (x) 2 | 1 2 2 1 1 Average Overweight (x) 1 | . 1 1 . 1 Largest Inventory Capacity 20 | 8 15 15 20 20 Average Capacity 16 | 7 14 15 18 20 Most Carried 19 | 4 15 15 19 19 Average Carried 14 | 2 8 14 15 18 Final Capacity 20 | 8 15 15 20 20 Final Carried 19 | 4 15 14 19 14 Class Distribution -------------------- 100% | Mutant Dominant Class ---------------- Mutant | -10/Materials Mutant | -10/Mines Mutant | -10/Exiles Mutant | -9/Mines Resources | -11 -10 -10 -10 -9 ----------- Run | Scr Mat Min Exi Min Matter Collected 301 | 260 20 10 . 11 Remotely . | . . . . . Salvage Created 352 | 67 70 181 . 34 Parts 35 | 3 14 18 . . Haulers Intercepted . | . . . . . Recyclers Shooed . | . . . . . Parts Field Recycled . | . . . . . Retrieved Matter . | . . . . . Parts Self-Destructed . | . . . . . Prevented . | . . . . . Kills | -11 -10 -10 -10 -9 ------- Run | Scr Mat Min Exi Min Combat Hostiles Destroyed 27 | . 3 8 . 16 Guns 11 | . 3 8 . . AOE 16 | . . . . 16 Classes Destroyed 6 | 1 3 1 . 1 Builder 1 | . 1 . . . Recycler 1 | 1 . . . . Watcher 1 | . 1 . . . Swarmer 9 | . 3 6 . . Grunt 2 | . . 2 . . Assembled 16 | . . . . 16 Best Kill Streak 16 | 1 4 3 . 16 Combat Bots Only 16 | . 2 3 . 16 Max Kills in Single Turn 5 | 1 1 2 . 5 Gunslinging 1 | . . 1 . . Exploded 5 | . . . . 5 Melee . | . . . . . Uniques/NPCs Destroyed . | . . . . . Combat | -11 -10 -10 -10 -9 -------- Run | Scr Mat Min Exi Min Damage Taken 905 | . 63 146 . 696 Core 251 | . 15 22 . 214 Absorbed by Shields . | . . . . . Core Remaining (%) 100 | 100 . . . . Volleys Fired 27 | 3 5 14 . 5 Largest 2 | 2 2 2 . 2 Hottest 90 | 90 90 90 . 80 Shots Fired 53 | 6 10 28 . 9 Gun 45 | 6 10 28 . 1 Cannon 1 | . . . . 1 Launcher 7 | . . . . 7 Special . | . . . . . Kinetic . | . . . . . Thermal 45 | 6 10 28 . 1 Explosive 7 | . . . . 7 Electromagnetic 1 | . . . . 1 Robot Hit Streak 14 | 3 8 14 . 2 Robot Miss Streak 2 | 1 . 2 . 1 Penetration Max . | . . . . . Secondary Targets 1 | . . 1 . . Max Gunslinging Chain 1 | . . 1 . . Shots Hit Robots 31 | 5 5 19 . 2 Core Hits 52 | 2 5 12 . 33 Critical Kills . | . . . . . Critical Parts Destroyed . | . . . . . Critical Strikes 3 | . 1 1 . 1 Burn 3 | . 1 1 . 1 Melee Attacks . | . . . . . Impact . | . . . . . Slashing . | . . . . . Piercing . | . . . . . Sneak Attacks . | . . . . . Combat Hostiles . | . . . . . Follow-up Attacks . | . . . . . Damage Inflicted 1353 | 70 75 249 . 959 Guns 407 | 70 75 249 . 13 Cannons . | . . . . . Explosions 946 | . . . . 946 Melee . | . . . . . Ramming . | . . . . . Kinetic . | . . . . . Thermal 407 | 70 75 249 . 13 Explosive 923 | . . . . 923 Electromagnetic 23 | . . . . 23 Impact . | . . . . . Slashing . | . . . . . Piercing . | . . . . . Highest Corruption 4 | . . . . 4 Average Corruption 3 | . . . . 3 Corruption Purged . | . . . . . Corruption Blocked . | . . . . . Effects 2 | . . . . 2 Matter Fused 1 | . . . . 1 Alerts 1 | . . . . 1 Overload Shots . | . . . . . Overflow Damage 26 | . . . . 26 Projectiles . | . . . . . Explosions 26 | . . . . 26 Melee . | . . . . . Knockbacks . | . . . . . Impact . | . . . . . Kinetic . | . . . . . Secondary . | . . . . . Self-Inflicted Damage 126 | . . . . 126 Shots 4 | . . . . 4 Rammed . | . . . . . Targets Rammed . | . . . . . Kicked . | . . . . . Crushed . | . . . . . Highest Temperature 150 | 90 60 150 . 23 Average Temperature 46 | 46 27 57 . 16 Received Heat Transfer 85 | . 21 24 . 40 Siege Activations . | . . . . . Robots Corrupted . | . . . . . Combat Hostiles . | . . . . . Parts Fried . | . . . . . Impact Corruptions . | . . . . . Robots Melted . | . . . . . Combat Hostiles . | . . . . . Parts Melted 6 | 1 2 3 . . Heat Transferred 1275 | 186 284 694 . 111 Parts Sabotaged . | . . . . . Parts Stolen . | . . . . . Parts Stripped . | . . . . . Power Chain Reactions . | . . . . . Missiles Intercepted . | . . . . . Latent Energy Used 38 | . . . . 38 LE Corruption 1 | . . . . 1 Alert | -11 -10 -10 -10 -9 ------- Run | Scr Mat Min Exi Min Peak Influence 175 | 5 122 175 . 68 Initial 25 | . 3 25 . . Average 52 | 1 56 92 . 7 Maximum Alert Level . | . . . . . Low Security (%) 100 | 100 100 100 . 100 Level 1 . | . . . . . Level 2 . | . . . . . Level 3 . | . . . . . Level 4 . | . . . . . Level 5 . | . . . . . High Security . | . . . . . Max Security . | . . . . . Squads Dispatched 3 | . 3 . . . Investigation 2 | . 2 . . . Extermination . | . . . . . Reinforcement 1 | . 1 . . . Assault . | . . . . . Garrison . | . . . . . Intercept . | . . . . . Searches Triggered . | . . . . . Construction Impeded . | . . . . . Haulers Reinforced . | . . . . . Active Scanning Responses . | . . . . . Cargo Convoy Interrupts . | . . . . . Stealth | -11 -10 -10 -10 -9 --------- Run | Scr Mat Min Exi Min Distress Signals 1 | . . . . 1 Communications Jammed . | . . . . . Distress Signals . | . . . . . Times Spotted 39 | . 8 8 . 23 Peak Tracking Total 19 | . 3 3 . 19 Tactical Retreats 3 | . 1 . . 2 Traps | -11 -10 -10 -10 -9 ------- Run | Scr Mat Min Exi Min Traps Triggered . | . . . . . Indirectly . | . . . . . Trap Hack Attempts . | . . . . . Triggered . | . . . . . Disarmed . | . . . . . Reprogrammed . | . . . . . Reused . | . . . . . Traps Extracted . | . . . . . Installed . | . . . . . Triggered . | . . . . . Machines | -11 -10 -10 -10 -9 ---------- Run | Scr Mat Min Exi Min Machines Disabled . | . . . . . Max in Single Turn . | . . . . . Machines Sabotaged . | . . . . . Overloaded Fab Kills . | . . . . . Hacking | -11 -10 -10 -10 -9 --------- Run | Scr Mat Min Exi Min Machines Accessed 6 | . 4 . 2 . Terminals 2 | . 2 . . . Fabricators . | . . . . . Repair Stations . | . . . . . Recycling Units 2 | . 2 . . . Scanalyzers . | . . . . . Garrison Access . | . . . . . Total Hacks 12 | . 10 . 2 . Successful 8 | . 6 . 2 . Failed 4 | . 4 . . . Catastrophic 1 | . 1 . . . Database Lockouts . | . . . . . Manual 9 | . 8 . 1 . Terminals 8 | . 8 . . . Fabricators . | . . . . . Repair Stations . | . . . . . Recycling Units 2 | . 2 . . . Scanalyzers . | . . . . . Garrison Access . | . . . . . Terminal Hacks 6 | . 4 . 2 . Record 1 | . . . 1 . Robot Analysis 2 | . 2 . . . Branch Access Points 1 | . 1 . . . Unreport Threat 1 | . 1 . . . EX-Prototype ID Bank 1 | . . . 1 . Fabricator Hacks . | . . . . . Repair Station Hacks . | . . . . . Recycling Unit Hacks . | . . . . . Scanalyzer . | . . . . . Garrison Access Hacks . | . . . . . Unauthorized Hacks 2 | . 2 . . . Terminals . | . . . . . Fabricators . | . . . . . Repair Stations . | . . . . . Recycling Units 2 | . 2 . . . Tunnel 2 | . 2 . . . Scanalyzers . | . . . . . Garrison Access . | . . . . . Data Cores Recovered . | . . . . . Used . | . . . . . Hacking Detections 2 | . 2 . . . Full Trace Events 1 | . 1 . . . Feedback Events . | . . . . . Feedback Blocked . | . . . . . Robot Schematics Acquired . | . . . . . Robots Built . | . . . . . Authchips . | . . . . . Time . | . . . . . Total Robot Build Rating . | . . . . . Part Schematics Acquired . | . . . . . Parts Built . | . . . . . Authchips . | . . . . . Time . | . . . . . Total Part Build Rating . | . . . . . Parts Repaired . | . . . . . Time . | . . . . . Parts Recycled . | . . . . . Recycled Matter . | . . . . . Retrieved Matter . | . . . . . Retrieved Components . | . . . . . Parts Scanalyzed . | . . . . . Part Schematics Acquired . | . . . . . Parts Damaged . | . . . . . Bothacking | -11 -10 -10 -10 -9 ------------ Run | Scr Mat Min Exi Min Used RIF Installer . | . . . . . Robots Hacked . | . . . . . Non-combat . | . . . . . Combat . | . . . . . Robot Hacks Applied . | . . . . . Relay Couplers Released . | . . . . . Fabnet Peak Effective % . | . . . . . Robots Rewired . | . . . . . Allies Hacked . | . . . . . Hacks Repelled . | . . . . . Allies | -11 -10 -10 -10 -9 -------- Run | Scr Mat Min Exi Min Total Allies . | . . . . . Largest Group . | . . . . . Highest-Rated Group . | . . . . . Highest-Rated Ally . | . . . . . Total Orders . | . . . . . Ally Attacks . | . . . . . Total Damage . | . . . . . Kills . | . . . . . Allies Corrupted . | . . . . . Allies Melted 1 | . . . . 1 Intel | -11 -10 -10 -10 -9 ------- Run | Scr Mat Min Exi Min Robot Analysis Total 2 | . 2 . . . Derelict Logs Recovered 2 | . . 1 . 1 Drone Launches . | . . . . . Drone Recoveries . | . . . . . Exploration | -11 -10 -10 -10 -9 ------------- Run | Scr Mat Min Exi Min Turns Passed 2152 | 76 262 553 834 427 Spaces Moved 1254 | 59 203 419 413 160 Core 2 | 2 . . . . Treads 637 | . . 64 413 160 Legs . | . . . . . Wheels 615 | 57 203 355 . . Hover . | . . . . . Flight . | . . . . . Fastest Speed 50 | 50 95 110 160 240 Average Speed 158 | 91 109 117 201 240 Slowest Speed 240 | 95 110 160 240 240 Overloaded Moves . | . . . . . Propulsion Burnouts . | . . . . . Robots Hopped . | . . . . . Cave-ins Triggered . | . . . . . Exploration Rate (%) 49 | 4 44 96 70 35 Regions Visited 4 Branch Regions 3 Pre-discovered Areas 4 | . 2 . 1 1 Known Exits Taken 1 | . 1 . . . Unknown Exits Taken 3 | 1 . 1 1 . Scrap Searched 4 | . . 3 . 1 Spaces Dug . | . . . . . Terrain Destroyed 40 | . . . . 40 Melee . | . . . . . Projectile . | . . . . . AOE 40 | . . . . 40 Terrain Rammed . | . . . . . Walls Destroyed . | . . . . . Machines Disabled . | . . . . . Actions | -11 -10 -10 -10 -9 --------- Run | Scr Mat Min Exi Min Total 1366 | 71 234 451 415 195 Wait 46 | . 4 18 . 24 Move 1250 | 58 202 418 412 160 Hop . | . . . . . Pick Up 22 | 4 16 . 2 . Fast Attach 7 | 6 1 . . . Attach 7 | . 1 1 . 5 Detach . | . . . . . Swap 2 | . . . 1 1 Drop 5 | . 5 . . . Fire 27 | 3 5 14 . 5 Melee . | . . . . . Ram . | . . . . . Kick . | . . . . . Crush . | . . . . . Escape Stasis . | . . . . . Rewire . | . . . . . Trap . | . . . . . Miscellaneous . | . . . . . Route ------- -11/Scrapyard -10/Materials (discovered 2 exits: [*Mat] / *Min) -10/Mines (discovered 3 exits: [*Mat x2] / *Exi) -10/Exiles (discovered 2 exits: [*Min x2]) -9/Mines (discovered 1 exit: [*Mat]) History --------- Turn | Location | Event 7 | -11/Scrapyard | Discovered new exit (range 16) 77 | -11/Scrapyard | Entered Materials 146 | -10/Materials | Identified exit to Mines 252 | -10/Materials | Discovered new exit (range 16) 309 | -10/Materials | Build established: Mutant 339 | -10/Materials | Entered Mines 481 | -10/Mines | Discovered new exit (range 11) 682 | -10/Mines | Discovered new exit (range 5) 705 | -10/Mines | Learned 2 Materials zone layouts 885 | -10/Mines | Deemed a non-threat by the Exiles lab entrance 885 | -10/Mines | Discovered new exit (range 5) 892 | -10/Mines | Entered Exiles 916 | -10/Exiles | Discovered new exit (range 15) 932 | -10/Exiles | Met 8R-AWN 958 | -10/Exiles | Met EX-HEX 1033 | -10/Exiles | Met EX-DEC 1041 | -10/Exiles | Learned location of Zion (-7) 1350 | -10/Exiles | Met EX-BIN 1420 | -10/Exiles | Aligned with FarCom system 1422 | -10/Exiles | Given EX-Vault access code 1477 | -10/Exiles | Opened EX-Vault 1494 | -10/Exiles | Found Lightpack 2.0 1505 | -10/Exiles | Found Latent Energy Streamer 1551 | -10/Exiles | Warned to stay clear of 0b10 Research branches 1700 | -10/Exiles | Discovered new exit (range 14) 1726 | -10/Exiles | Stole two prototypes: Lightpack 2.0, Latent Energy Streamer 1726 | -10/Exiles | Entered Mines 1730 | -9/Mines | Met a Derelict bent on vengeance 1818 | -9/Mines | Discovered new exit (range 11) 2039 | -9/Mines | Assembled infested the area 2044 | -9/Mines | Assisted by a Guerilla fighting off Assembled 2079 | -9/Mines | Core integrity fell below 50% 2084 | -9/Mines | Core integrity fell below 20% 2105 | -9/Mines | Destroyed 16 combat bots 2115 | -9/Mines | Lost 5 parts (1p2n1u1w) 2153 | -9/Mines | Destroyed by S-10 Pest with Light Assault Rifle Last Messages --------------- [Achievement: Exterminator] 02084_ as-79616 destroyed. 02085_ The unstable cave ceiling collapses. 02095_ Acquired 1 matter. 02106_ R-06 Scavenger collects Lgt. Ion Engine. 02114_ System corrupted: Matter fused (-5). 02118_ K-01 Serf collects debris. 02123_ The unstable cave ceiling collapses. 02127_ U-05 Engineer builds a Wall. 02137_ R-06 Scavenger collects Wheel. 02138_ System corrupted: IFF burst signal emitted. 02139_ U-05 Engineer builds a Wall. 02139_ R-06 Scavenger collects Lgt. Ion Engine. 02141_ U-05 Engineer lays Concrete. 02142_ U-05 Engineer builds a Wall. 02142_ R-06 Scavenger collects Wheel. 02146_ U-05 Engineer lays Concrete. 02147_ U-05 Engineer builds a Wall. 02148_ U-05 Engineer sends out distress signal. 02153_ U-05 Engineer lays Concrete. Map ----- +----------------------------------------------------+ | ?????????????### ???????????????????????????? | | ?????????????## ???????????????????????????? | | ?????????????## ???????????????????????????? | | ?????????????### ??????????????????????????? | | ?????????????### ###?????????????????????????? | | ?????????????# " ####????????????????????????? | | ??????????????## % ###????????????????????????? | | ?????????????????% = ##????????????????????????? | | ?????????????????#% % ##????????????????????????? | | ?????????????????## ##????????????????????????? | | ?????????????????## ##????????????????????????? | | ?????????????????### ##????????????????????????? | | ?????????????????### ###???????????????????????? | | ?????????????????## ####??????????????????????? | | ????????????????### ####????????? ???????????? | | ????????????????###% #######?????? ??????????? | | ??????????????#### # ##????? ##????????? | | ???????? ##### ##????? ##????????? | | ???????? # % ##??? #????????? | | ?????????? # # #???## ????????? | | ?????????? ###### # #???## ####????## | | ???????????######## # # % #????## ####???### | | ????????????????#### d### #?????# ##?##### | | ?????????????????### # # #?????## ####### | | ??????????????????##d #ss ##?????## ##### | | ??????????????????##% s @ #??????## #### | | ??????????????????## # #??????## ### | | ?????????????#######% ### u ####??###### # | | ????????????######## ### #####???###### # | | ???????????#### ### #####?#### | | ???????????### ## ##?#### #### | | ??????????? ## ##### ##### # | | ?????????????## # # ##### ########### ## | | ?????????????### ### ### ####?########## | | ??????????????## ## ## ############### | | ??????????????### ## ####### ###?? | | ???????????????###### ##?? | | ???????????????????### ! < ##?? | | ???????????????????#### % ###### ###?? | | ????????????????????### [ ######## ##### | | ?????????????????????### ######??#### ##### | | ?????????????????????#### ######????### ## | | ??????????????????????#### ####????????## ## ## | | ???????????????????????########?????????####### ## | | ????????????????????????######??????????####### ## | | ?????????????????????????????????????????????## ## | | ?????????????????????????????????????????????## ## | | ?????????????????????????????????????????????## ## | | ???????????????????????????????????????????#### ## | | ???????????????????????????????????????????#### ## | +----------------------------------------------------+ Best States ------------- Heat Dissipation 25 Energy Generation 10 Energy Capacity 250 Matter Stores 300 Matter Capacity 300 Sight Range 16 Terrain Scan Density 10 Evasion (%) 44 Recoil Reduction 2 Item Schematics ----------------- None Robot Schematics ------------------ None Fabricated ------------ Nothing Alien Tech Used ----------------- None Achievements -------------- Exterminator Challenges ------------ None Game ------ Seed ModifiedNodeRailgun Manual? 0 Play Time 00:19:57 Cumulative 174.5 hours Start 2022.12.29 @ 21:51:50 End 2022.12.29 @ 22:36:10 Sessions 3 Manual Loads 0 Difficulty Rogue Special Mode None Game No. 258 Rogue 258 Adventurer 0 Explorer 0 Win Type - Total 4 Types 1/0/3/0/0/0/0/0/0 Lore% 70 Gallery% 79 Achievement% 61 Wizard Run 0 Options --------- ASCII 0 Keyboard 0 Movement Numpad Keybinds 0 Fullscreen 1 Font 18/SmallcapsGlow Map View 76x50 Tactical HUD 1 Map Filters NONE Filters NONE Steam 1 RUN: 2afda272-1544-43d3-b1a0-a221fbbb2559